bitfinex/quotes_ETHUSD_20250505
["timestamp","ask_amount","ask_price","bid_price","bid_amount"]
[1746448800455,7.87656155,1811.4,1811.1,6.17]
[1746448800656,7.87656155,1811.4,1811.1,7.63622]
[1746448800950,5.52098333,1811.3,1811.1,6.9375]
[1746448801461,6.32034047,1811.3,1811.1,6.17]
[1746448801618,11.67642373,1811.2,1811.1,6.17]
[1746448801816,12.42613837,1811.2,1811.1,6.17]
[1746448802112,11.67642373,1811.2,1811.1,6.17]
[1746448802319,13.39616015,1811.2,1811.1,6.17]
[1746448802719,8.52181115,1811.0,1810.9,3.7315969]
[1746448802937,11.69133347,1811.0,1810.9,3.7315969]
[1746448806348,9.33551115,1811.0,1810.9,3.7315969]
[1746448806554,11.69133347,1811.0,1810.9,3.7315969]
[1746448806756,11.69133347,1811.0,1810.6,0.8271]
[1746448806757,5.52272601,1810.7,1810.6,0.8271]
[1746448808247,5.523095,1810.6,1810.4,4.5144969]
[1746448811251,5.52309072,1810.6,1810.4,4.5144969]
[1746448813973,5.52309072,1810.6,1810.4,0.7829]
[1746448814471,5.93264824,1810.7,1810.4,0.7829]
[1746448814896,5.93264824,1810.7,1810.4,1.85134969]
[1746448815456,5.5227711,1810.7,1810.4,1.85134969]
[1746448816969,11.04572913,1810.7,1810.4,1.85134969]
[1746448817165,11.04574802,1810.7,1810.4,1.85134969]
[1746448817371,5.5227711,1810.7,1810.4,1.85134969]
[1746448817583,8.29659601,1810.8,1810.4,1.85134969]
[1746448817736,5.52286811,1810.7,1810.4,1.85134969]
[1746448820875,8.29659601,1810.8,1810.4,1.85134969]
[1746448821054,5.94077369,1810.8,1810.4,1.85134969]
[1746448821888,5.52225415,1810.9,1810.4,1.85134969]
[1746448822099,5.52250727,1810.8,1810.4,1.85134969]
[1746448822593,5.52250727,1810.8,1810.5,0.7975]
[1746448825605,5.52225415,1810.9,1810.5,0.7975]
[1746448825907,11.04464818,1810.9,1810.5,0.7975]
[1746448826498,11.46831666,1810.9,1810.5,0.7975]
[1746448827101,5.94592263,1810.9,1810.5,0.7975]
[1746448827289,5.52129327,1811.2,1810.7,0.7826]
[1746448827490,11.04276237,1811.2,1810.7,6.9526]
[1746448827796,13.39858469,1811.2,1810.8,0.69526]
[1746448828295,7.87711559,1811.2,1810.9,0.7556]
[1746448829418,8.29743526,1811.2,1810.9,0.7556]
[1746448830119,13.81889555,1811.2,1810.9,0.7556]
[1746448830296,5.52152355,1811.1,1810.9,0.7556]
[1746448831026,8.29757667,1811.2,1810.9,0.7556]
[1746448831618,5.52156377,1811.1,1810.9,0.7556]
[1746448833146,5.52259923,1810.8,1810.5,11.5364]
[1746448833429,8.69712155,1810.8,1810.5,11.5364]
[1746448833616,7.87842155,1810.8,1810.7,3.7315969]
[1746448834828,8.52199952,1811.0,1810.7,3.7315969]
[1746448835000,14.04403908,1811.0,1810.8,0.776]
[1746448835328,11.04405755,1811.0,1810.8,0.776]
[1746448835626,5.52199952,1811.0,1810.8,0.776]
[1746448836310,5.52211607,1810.9,1810.8,0.776]
[1746448837425,5.52162834,1811.1,1810.8,0.776]
[1746448837641,3.42031967,1811.2,1810.8,0.776]
[1746448837642,5.94165054,1811.2,1810.8,0.776]
[1746448838144,5.52133087,1811.2,1810.8,0.776]
[1746448838632,7.87684937,1811.3,1810.8,0.83121654]
[1746448840625,10.87667997,1811.4,1810.8,0.83121654]
[1746448840831,11.28495823,1811.4,1810.8,0.83121654]
[1746448841134,5.52101807,1811.3,1810.8,0.83121654]
[1746448842126,5.52085721,1811.4,1810.8,6.22521654]
[1746448842314,5.52089963,1811.3,1810.9,1.39522165]
[1746448844834,5.52120371,1811.2,1810.9,1.39522165]
[1746448845233,5.52120371,1811.2,1810.9,5.12681855]
[1746448845703,11.04267586,1811.2,1810.9,5.12681855]
[1746448845903,11.0426347,1811.2,1810.9,5.12681855]
[1746448846312,5.52120371,1811.2,1810.9,5.12681855]
[1746448847333,7.87689083,1811.3,1811.0,0.51268186]
[1746448847552,5.52106851,1811.3,1811.1,0.7782]
[1746448847711,5.5212364,1811.2,1811.1,0.7782]
[1746448847915,5.5215326,1811.1,1810.9,5.13231855]
[1746448848337,5.5212364,1811.2,1810.9,5.13231855]
[1746448848843,5.5212364,1811.2,1810.9,1.40072165]
[1746448849036,5.52106631,1811.3,1810.9,0.62252165]
[1746448849242,5.52150626,1811.1,1811.0,0.7996]
[1746448849441,5.52121548,1811.2,1811.0,0.7996]
[1746448850008,5.52108211,1811.3,1811.0,0.7996]
[1746448851010,7.8765999,1811.4,1811.0,0.7996]
[1746448851207,5.52093172,1811.3,1811.0,0.7996]
[1746448853132,5.52093172,1811.3,1811.0,1.31497185]
[1746448853641,5.52077691,1811.4,1811.0,1.31497185]
[1746448853943,16.26691526,1811.8,1811.2,0.8079]
[1746448854144,3.0,1811.7,1811.3,0.8079]
[1746448854347,8.51976338,1811.7,1811.3,0.8079]
[1746448856309,8.51976338,1811.7,1811.3,1.51121039]
[1746448856935,3.0,1811.7,1811.4,0.7993]
[1746448857238,10.11725328,1811.9,1811.4,0.85450358]
[1746448857742,4.598,1811.9,1811.4,0.85450358]
[1746448857924,3.0,1811.9,1811.4,0.85449717]
[1746448858119,3.0,1811.9,1811.4,0.7993]
[1746448858324,8.51912239,1811.9,1811.4,0.7993]
[1746448858930,14.03843377,1811.9,1811.4,0.7993]
[1746448859124,8.51912239,1811.9,1811.4,0.7993]
[1746448860252,14.03846419,1811.9,1811.5,6.93]
[1746448860432,5.51941523,1811.8,1811.6,0.693]
[1746448860631,8.51926353,1811.9,1811.6,0.693]
[1746448861553,7.87540749,1811.8,1811.5,6.93]
[1746448861752,5.51979629,1811.7,1811.5,6.93]
[1746448862967,5.51979629,1811.7,1811.5,6.17]
[1746448864355,7.87580465,1811.6,1811.5,6.17]
[1746448866267,5.52039315,1811.5,1811.3,8.3295969]
[1746448867381,5.52039315,1811.5,1811.3,4.598]
[1746448868274,5.52039315,1811.5,1811.2,0.7854]
[1746448870676,5.51910288,1811.9,1811.3,0.83270949]
[1746448870978,5.51910288,1811.9,1811.5,0.7775]
[1746448871345,5.51937601,1811.8,1811.5,0.7775]
[1746448871558,5.51970462,1811.7,1811.5,0.7775]
[1746448871963,7.87552694,1811.7,1811.4,6.17]
[1746448872277,5.52010578,1811.6,1811.4,6.17]
[1746448873680,8.63570749,1811.7,1811.4,6.17]
[1746448874045,5.51954422,1811.8,1811.5,0.766]
[1746448874479,7.87497845,1811.9,1811.5,0.766]
[1746448874861,5.51892635,1812.0,1811.5,0.766]
[1746448875458,5.51913674,1811.9,1811.5,0.766]
[1746448875787,13.39426683,1811.9,1811.5,0.766]
[1746448876090,7.87495906,1811.9,1811.5,0.766]
[1746448876399,5.51950864,1811.8,1811.5,0.766]
[1746448876750,7.87495906,1811.9,1811.5,0.766]
[1746448877049,7.87562623,1811.7,1811.4,6.17]
[1746448877243,7.87610937,1811.5,1811.4,6.17]
[1746448877501,14.15467943,1811.7,1811.2,3.7315969]
[1746448877788,5.52007849,1811.6,1811.3,3.7315969]
[1746448878082,11.04034679,1811.6,1811.3,3.7315969]
[1746448878254,5.52007849,1811.6,1811.3,3.7315969]
[1746448878459,5.52007849,1811.6,1811.3,4.4821969]
[1746448878654,5.52041564,1811.5,1811.3,3.7315969]
[1746448879069,5.51998233,1811.6,1811.3,3.7315969]
[1746448879367,11.04022823,1811.6,1811.3,3.7315969]
[1746448879570,5.52029653,1811.5,1811.3,3.7315969]
[1746448879767,11.04020489,1811.6,1811.3,3.7315969]
[1746448879983,5.51999259,1811.6,1811.3,3.7315969]
[1746448880152,5.52028905,1811.5,1811.3,3.7315969]
[1746448881309,5.5205918,1811.4,1811.3,3.7315969]
[1746448882212,8.70911137,1811.5,1811.1,6.9206]
[1746448882411,14.22963447,1811.5,1811.1,6.9206]
[1746448882708,8.70911137,1811.5,1811.1,6.9206]
[1746448883076,7.87611137,1811.5,1811.1,6.9206]
[1746448883403,7.87611137,1811.5,1811.1,8.49705688]
[1746448884208,5.5206108,1811.4,1811.1,8.49705688]
[1746448885114,7.87611137,1811.5,1811.1,8.49705688]
[1746448886116,13.39663366,1811.5,1811.1,8.49705688]
[1746448886408,5.52063008,1811.4,1811.1,8.49705688]
[1746448887911,5.52063008,1811.4,1811.1,6.9206]
[1746448888075,5.52104522,1811.3,1811.1,6.9206]
[1746448888272,5.52104522,1811.3,1811.1,10.6521969]
[1746448888476,5.52063008,1811.4,1811.1,10.6521969]
[1746448889220,5.52092289,1811.3,1811.1,9.9015969]
[1746448890089,5.52063008,1811.4,1811.1,3.7315969]
[1746448890978,5.52063008,1811.4,1811.1,4.18748659]
[1746448892324,5.52063008,1811.4,1811.1,0.45588969]
[1746448892479,5.52063008,1811.4,1811.0,0.8273]
[1746448893921,5.52093364,1811.3,1811.0,0.8273]
[1746448894915,5.52092423,1811.3,1811.0,0.8273]
[1746448895084,5.52063008,1811.4,1811.0,0.8273]
[1746448895880,5.52095416,1811.3,1811.0,0.8273]
[1746448896081,5.52095416,1811.3,1811.0,1.74278969]
[1746448896281,5.52106735,1811.3,1811.0,1.74278969]
[1746448896820,5.52063008,1811.4,1811.0,1.74278969]
[1746448897311,7.87626705,1811.5,1811.1,0.7935]
[1746448899717,5.52072233,1811.4,1811.1,0.7935]
[1746448900418,5.52072233,1811.4,1811.1,1.34307982]
[1746448900912,7.87626705,1811.5,1811.1,1.34307982]
[1746448901114,5.52015228,1811.6,1811.1,1.34307982]
[1746448901322,5.51950208,1811.8,1811.2,0.86530827]
[1746448901513,5.51908606,1811.9,1811.4,0.7954]
[1746448901824,5.51908606,1811.9,1811.4,0.85059921]
[1746448902615,5.5194001,1811.8,1811.4,2.01235913]
[1746448902815,5.5194001,1811.8,1811.4,1.95715992]
[1746448903027,5.51908606,1811.9,1811.5,0.7973]
[1746448903914,11.03842242,1811.9,1811.5,0.7973]
[1746448904111,5.51937332,1811.8,1811.5,0.7973]
[1746448904827,8.51983676,1811.7,1811.4,1.2169596]
[1746448905023,7.87602697,1811.6,1811.3,6.9436]
[1746448905722,13.39624798,1811.6,1811.3,6.9436]
[1746448905923,7.87602697,1811.6,1811.3,6.9436]
[1746448906130,13.39627429,1811.6,1811.3,6.9436]
[1746448906928,5.52020465,1811.6,1811.3,8.09756]
[1746448907129,5.51986134,1811.7,1811.3,8.09756]
[1746448907328,11.03977117,1811.7,1811.3,8.09756]
[1746448907628,5.51986134,1811.7,1811.3,8.09756]
[1746448908003,11.03984266,1811.7,1811.3,8.09756]
[1746448909237,5.52002788,1811.6,1811.3,8.09756]
[1746448909614,5.5203082,1811.5,1811.3,8.09756]
[1746448911462,5.5203082,1811.5,1811.3,6.9436]
[1746448912656,5.52002788,1811.6,1811.3,6.9436]
[1746448913031,5.51976644,1811.7,1811.3,6.9436]
[1746448913340,5.52013704,1811.6,1811.3,6.9436]
[1746448914156,11.04036253,1811.6,1811.3,6.9436]
[1746448914455,11.04036253,1811.6,1811.3,8.47071969]
[1746448914755,5.52031176,1811.5,1811.3,8.47071969]
[1746448915258,5.52031176,1811.5,1811.3,6.9436]
[1746448916757,11.04085083,1811.5,1811.3,6.9436]
[1746448917054,5.52031176,1811.5,1811.3,6.9436]
[1746448917563,11.0408232,1811.5,1811.3,6.9436]
[1746448918070,5.5205918,1811.4,1811.3,6.17]
[1746448918229,5.5205918,1811.4,1811.2,4.5619969]
[1746448919940,5.5205918,1811.4,1811.2,3.7315969]
[1746448920268,5.52089659,1811.3,1811.2,3.7315969]
[1746448921270,5.52120141,1811.2,1811.1,3.7315969]
[1746448923142,5.52089659,1811.3,1811.1,3.7315969]
[1746448923442,5.52120141,1811.2,1811.1,3.7315969]
[1746448925106,5.52120141,1811.2,1810.8,15.2735969]
[1746448925368,5.52120141,1811.2,1810.9,1.52735969]
[1746448926674,5.52151187,1811.1,1810.9,1.52735969]
[1746448926970,11.04266468,1811.2,1810.9,1.52735969]
[1746448927172,3.18512232,1811.2,1810.8,4.5085969]
[1746448927372,6.35141607,1810.9,1810.8,3.7315969]
[1746448927572,9.35141607,1810.9,1810.8,3.7315969]
[1746448928750,5.52269799,1810.8,1810.6,6.17]
[1746448928963,11.04539598,1810.8,1810.4,11.5895]
[1746448929189,5.52269799,1810.8,1810.4,13.23316931]
[1746448929402,3.0,1810.9,1810.5,0.7989]
[1746448929692,14.04345621,1811.1,1810.5,0.7989]
[1746448929877,5.52183064,1811.0,1810.5,0.7989]
[1746448930584,5.52220766,1810.9,1810.5,0.7989]
[1746448930777,5.52252619,1810.8,1810.5,2.11965693]
[1746448931091,5.52220766,1810.9,1810.5,2.11965693]
[1746448931252,11.04459325,1810.9,1810.5,2.11965693]
[1746448931884,5.52220766,1810.9,1810.5,2.11965693]
[1746448933094,5.52220766,1810.9,1810.6,6.69399369]
[1746448933693,11.04455253,1810.9,1810.6,6.69399369]
[1746448936106,5.52220766,1810.9,1810.6,6.69399369]
[1746448936306,11.04457328,1810.9,1810.6,6.69399369]
[1746448936471,11.04457328,1810.9,1810.5,2.11965693]
[1746448937209,5.5225237,1810.8,1810.5,2.11965693]
[1746448939402,5.52220766,1810.9,1810.5,2.11965693]
[1746448940130,13.3998744,1811.0,1810.5,2.11965693]
[1746448940404,5.52220258,1810.9,1810.5,2.11965693]
[1746448941542,11.04454233,1810.9,1810.5,2.11965693]
[1746448941839,5.52220258,1810.9,1810.5,2.11965693]
[1746448942014,5.52220258,1810.9,1810.6,0.8152]
[1746448943538,11.04456413,1810.9,1810.6,0.8152]
[1746448943844,5.52220258,1810.9,1810.6,0.8152]
[1746448944143,11.04455678,1810.9,1810.6,0.8152]
[1746448944327,5.52220258,1810.9,1810.6,0.8152]
[1746448946448,5.5231521,1810.6,1810.4,6.9975]
[1746448950278,5.5228239,1810.7,1810.4,6.9975]
[1746448950961,5.52333609,1810.5,1810.4,6.9975]
[1746448951478,5.52315099,1810.6,1810.4,6.9975]
[1746448952139,5.52291221,1810.7,1810.4,6.9975]
[1746448952657,11.04589945,1810.7,1810.4,6.9975]
[1746448952876,5.52314916,1810.6,1810.4,6.9975]
[1746448955992,5.52289282,1810.7,1810.4,6.9975]
[1746448956903,11.04585236,1810.7,1810.4,6.9975]
[1746448957056,5.52289282,1810.7,1810.4,6.9975]
[1746448957262,5.523053,1810.6,1810.4,6.9975]
[1746448957685,6.86306029,1810.7,1810.4,6.9975]
[1746448957990,5.52289282,1810.7,1810.4,6.9975]
[1746448959497,5.52303162,1810.6,1810.4,6.9975]
[1746448959695,11.8228582,1810.6,1810.4,6.17]
[1746448959890,6.29953162,1810.6,1810.4,6.17]
[1746448960060,11.82281614,1810.6,1810.4,6.17]
[1746448960263,5.52333609,1810.5,1810.4,6.17]
[1746448961301,6.94120509,1810.5,1810.4,6.17]
[1746448961604,5.52415595,1810.3,1810.1,4.51088143]
[1746448961804,5.52415595,1810.3,1810.1,3.72438143]
[1746448963207,5.52425146,1810.2,1810.1,3.72438143]
[1746448964307,7.88007378,1810.2,1810.1,3.72438143]
[1746448964606,8.49024799,1810.2,1810.1,3.72438143]
[1746448965100,5.52455665,1810.1,1810.0,3.72438143]
[1746448970037,5.52487064,1810.0,1809.8,0.8097]
[1746448970308,5.52516713,1809.9,1809.8,0.8097]
[1746448970667,5.52516713,1809.9,1809.7,11.5823]
[1746448970871,5.52520209,1809.9,1809.7,13.05274152]
[1746448971207,5.52487064,1810.0,1809.7,13.05274152]
[1746448971403,5.52528569,1809.9,1809.7,11.5823]
[1746448971703,11.05070752,1809.9,1809.7,11.5823]
[1746448972326,5.52528569,1809.9,1809.7,11.5823]
[1746448972608,5.52469141,1810.1,1809.7,11.5823]
[1746448972777,5.52487875,1810.0,1809.7,11.5823]
[1746448973078,5.52487875,1810.0,1809.8,1.15823]
[1746448976412,5.52487875,1810.0,1809.7,11.5823]
[1746448977819,5.52519002,1809.9,1809.7,11.5823]
[1746448978119,5.52519002,1809.9,1809.7,10.766]
[1746448978281,5.52547242,1809.8,1809.7,10.766]
[1746448979918,5.52599,1809.7,1809.5,0.792]
[1746448980087,5.52559474,1809.8,1809.5,0.792]
[1746448980411,5.52567362,1809.8,1809.5,0.792]
[1746448980589,8.52534654,1809.9,1809.5,2.00306154]
[1746448980789,5.52503401,1810.0,1809.6,0.7807]
[1746448981017,5.52499536,1810.0,1809.6,0.7807]
[1746448981386,8.52478357,1810.1,1809.6,0.83595365]
[1746448981788,5.52500889,1810.0,1809.6,0.83595365]
[1746448981988,8.52478357,1810.1,1809.6,0.7807]
[1746448982316,3.14072232,1810.3,1809.7,6.9759]
[1746448982317,3.0,1810.3,1809.7,6.9759]
[1746448982611,5.52377521,1810.4,1809.9,0.8059]
[1746448982989,6.28875685,1810.5,1809.9,0.8059]
[1746448983189,5.52364564,1810.4,1809.9,0.8059]
[1746448983391,11.04756158,1810.4,1809.9,0.8059]
[1746448983627,5.52364564,1810.4,1809.9,0.8059]
[1746448984807,11.0475289,1810.4,1809.9,0.8059]
[1746448985128,3.12112232,1810.5,1809.9,0.8059]
[1746448985129,8.6446195,1810.5,1809.9,0.8059]
[1746448985358,5.52380632,1810.4,1809.9,0.8059]
[1746448986263,5.52396647,1810.3,1809.9,6.9759]
[1746448986446,5.52396647,1810.3,1810.0,0.69759]
[1746448986764,5.52381605,1810.4,1810.0,0.69759]
[1746448988867,8.64463593,1810.5,1810.1,0.7643]
[1746448989052,5.52364309,1810.4,1810.1,0.7643]
[1746448991773,5.52341263,1810.5,1810.1,0.7643]
[1746448991977,5.52316184,1810.6,1810.1,0.7643]
[1746448992644,5.52344928,1810.5,1810.1,0.7643]
[1746448993087,7.87931418,1810.5,1810.1,0.7643]
[1746448993381,7.87989884,1810.3,1810.0,0.8022]
[1746448993667,2.35582232,1810.3,1810.0,0.8022]
[1746448994175,7.87987127,1810.3,1810.0,0.8022]
[1746448995265,5.52364935,1810.4,1810.0,0.8022]
[1746448995450,5.52364935,1810.4,1810.0,1.49942]
[1746449001440,5.52398137,1810.3,1810.0,1.49942]
[1746449004280,5.52398137,1810.3,1810.0,0.8022]
[1746449004982,6.3129276,1810.4,1810.0,0.8022]
[1746449005283,5.5238276,1810.4,1810.0,0.8022]
[1746449008404,13.40289708,1810.5,1810.0,0.8022]
[1746449008697,5.52348641,1810.5,1810.0,0.05524201]
[1746449008903,5.52348641,1810.5,1810.1,0.7504]
[1746449009080,11.04704825,1810.5,1810.1,0.7504]
[1746449009401,5.52364636,1810.4,1810.1,0.7504]
[1746449012187,5.52405171,1810.3,1810.0,3.72438143]
[1746449012400,5.52438725,1810.2,1810.0,3.72438143]
[1746449012721,5.52405171,1810.3,1810.0,3.72438143]
[1746449013102,5.52428216,1810.2,1810.0,3.72438143]
[1746449013629,5.52405171,1810.3,1809.9,10.68858143]
[1746449014128,11.04824682,1810.3,1809.9,10.68858143]
[1746449014315,11.04826109,1810.3,1809.9,10.68858143]
[1746449014817,5.52405171,1810.3,1809.9,10.68858143]
[1746449015017,5.52411314,1810.3,1809.9,10.68858143]
[1746449015218,5.52411314,1810.3,1809.9,12.28679857]
[1746449015754,8.66809623,1810.4,1809.9,12.28679857]
[1746449016248,5.52406757,1810.3,1809.9,12.28679857]
[1746449016550,5.52377391,1810.4,1810.0,0.7839]
[1746449017247,7.879327,1810.5,1810.0,0.7839]
[1746449018944,13.40291645,1810.5,1810.0,0.7839]
[1746449019149,7.879327,1810.5,1810.0,0.7839]
[1746449019337,5.52364786,1810.4,1810.0,0.7839]
[1746449019637,5.52364786,1810.4,1810.0,2.09851171]
[1746449020868,5.52350468,1810.5,1810.0,2.09851171]
[1746449021167,5.52350468,1810.5,1810.1,0.782]
[1746449021333,5.52364124,1810.4,1810.1,0.782]
[1746449022165,8.70881901,1810.6,1810.1,0.782]
[1746449022364,8.70881901,1810.6,1810.1,1.36409931]
[1746449022563,5.52319669,1810.6,1810.2,0.7967]
[1746449022767,13.27301268,1810.8,1810.2,0.8519365]
[1746449022983,10.91719036,1810.8,1810.2,0.8519365]
[1746449023135,5.52277237,1810.7,1810.2,0.8519365]
[1746449023336,5.52277237,1810.7,1810.4,0.7587]
[1746449024039,12.23015254,1810.7,1810.5,0.51882117]
[1746449024763,6.70716864,1810.7,1810.6,0.51882117]
[1746449026576,5.52256025,1810.8,1810.6,1.32962117]
[1746449026752,7.87807409,1810.9,1810.6,1.32962117]
[1746449026946,7.87807409,1810.9,1810.7,0.51882117]
[1746449027151,5.52242102,1810.8,1810.7,0.51882117]
[1746449027784,5.52242102,1810.8,1810.7,0.51803948]
[1746449028475,7.87794421,1810.9,1810.7,0.51803948]
[1746449028982,5.52186193,1811.0,1810.7,0.51803948]
[1746449029189,11.04394549,1811.0,1810.7,0.51803948]
[1746449029382,11.04394549,1811.0,1810.8,0.51803948]
[1746449029584,5.52186193,1811.0,1810.8,0.51803948]
[1746449029945,11.69725396,1811.1,1810.8,0.51803948]
[1746449029946,5.52163164,1811.1,1810.8,0.51803948]
[1746449030287,5.52163164,1811.1,1810.9,0.8283]
[1746449030701,5.52163164,1811.1,1811.0,0.51803948]
[1746449030992,5.52133201,1811.2,1811.0,0.51803948]
[1746449031296,5.52150626,1811.1,1811.0,0.51803948]
[1746449031592,5.52133201,1811.2,1811.0,0.51803948]
[1746449031791,5.52133201,1811.2,1810.9,0.8283]
[1746449033207,5.52160101,1811.1,1810.9,0.8283]
[1746449034008,5.52225708,1810.9,1810.7,5.3431]
[1746449034307,7.87824334,1810.8,1810.5,4.55058143]
[1746449034475,5.52276559,1810.7,1810.5,4.55058143]
[1746449034677,5.52276559,1810.7,1810.6,0.51703118]
[1746449035107,6.30916559,1810.7,1810.6,0.51703118]
[1746449035915,5.52303103,1810.6,1810.5,3.72438143]
[1746449036212,7.87885335,1810.6,1810.5,3.72438143]
[1746449038010,5.5235478,1810.5,1810.2,6.9307]
[1746449038513,5.5235478,1810.5,1810.2,8.14127993]
[1746449038711,5.5235478,1810.5,1810.3,0.51714057]
[1746449039227,5.52364118,1810.4,1810.3,0.51714057]
[1746449039411,5.5235478,1810.5,1810.3,0.51714057]
[1746449039718,5.5235478,1810.5,1810.2,8.14127993]
[1746449044828,5.52374891,1810.4,1810.2,8.14127993]
[1746449045030,5.5239463,1810.3,1810.2,6.17]
[1746449045191,5.5239463,1810.3,1810.0,11.5634]
[1746449045393,5.52434586,1810.2,1810.0,10.762]
[1746449046197,5.5241209,1810.3,1810.0,10.762]
[1746449046411,5.52427174,1810.2,1810.0,10.762]
[1746449049717,5.5241209,1810.3,1810.0,11.8382]
[1746449049917,13.40348737,1810.4,1810.1,0.8219]
[1746449050327,7.87959272,1810.4,1810.1,0.8219]
[1746449050543,5.52396625,1810.3,1810.1,0.8219]
[1746449053140,7.87965313,1810.4,1810.1,0.8219]
[1746449053339,13.40352867,1810.4,1810.1,0.8219]
[1746449053761,5.52398004,1810.3,1810.1,0.8219]
[1746449054362,7.87965313,1810.4,1810.1,0.8219]
[1746449054865,5.52383081,1810.4,1810.1,0.8219]
[1746449055963,5.52349957,1810.5,1810.1,1.52109]
[1746449056664,11.04709537,1810.5,1810.1,1.52109]
[1746449057459,5.52349957,1810.5,1810.1,1.52109]
[1746449057662,5.52366393,1810.4,1810.1,1.52109]
[1746449058661,5.52349957,1810.5,1810.1,1.52109]
[1746449059558,11.04706158,1810.5,1810.1,1.52109]
[1746449059758,11.04707181,1810.5,1810.1,1.52109]
[1746449059960,5.52349957,1810.5,1810.1,1.52109]
[1746449060168,11.04707412,1810.5,1810.1,1.52109]
[1746449061463,5.52349957,1810.5,1810.1,1.52109]
[1746449061662,11.04709302,1810.5,1810.1,1.52109]
[1746449061872,5.52374111,1810.4,1810.1,1.52109]
[1746449062184,5.52455665,1810.1,1810.0,6.17]
[1746449062574,5.52452579,1810.2,1810.0,6.17]
[1746449063350,5.52451669,1810.2,1810.0,6.17]
[1746449066556,5.52455665,1810.1,1810.0,6.17]
[1746449067186,11.0494113,1810.1,1809.9,4.593]
[1746449067398,5.52455665,1810.1,1809.9,4.593]
[1746449067752,11.04937847,1810.1,1809.9,4.593]
[1746449068297,5.52455665,1810.1,1809.9,4.593]
[1746449069109,5.52446204,1810.2,1809.9,4.593]
[1746449069256,11.04895473,1810.2,1809.9,4.593]
[1746449069967,5.52446204,1810.2,1809.9,4.593]
[1746449070178,11.0489775,1810.2,1809.9,5.05782486]
[1746449072012,5.52456815,1810.1,1809.9,5.05782486]
[1746449073171,5.52446204,1810.2,1809.9,5.86002486]
[1746449073700,8.67760725,1810.3,1809.9,5.86002486]
[1746449073861,5.52398493,1810.3,1809.9,5.86002486]
[1746449074381,5.52440437,1810.2,1809.9,5.86002486]
[1746449074577,5.52460244,1810.1,1809.9,5.86002486]
[1746449074759,5.52446208,1810.2,1809.9,5.86002486]
[1746449075290,5.52458775,1810.1,1809.9,5.86002486]
[1746449076163,5.52458775,1810.1,1809.9,5.3952]
[1746449076371,5.52458775,1810.1,1809.9,4.593]
[1746449079093,5.52442505,1810.2,1809.9,4.593]
[1746449079301,5.52442505,1810.2,1810.0,0.819]
[1746449081607,5.52379414,1810.4,1810.0,0.819]
[1746449081807,7.87936001,1810.5,1810.0,0.819]
[1746449081973,5.52353769,1810.5,1810.2,0.7883]
[1746449082173,5.52317694,1810.6,1810.2,0.7883]
[1746449083110,5.52336112,1810.5,1810.2,0.7883]
[1746449088527,7.87918344,1810.5,1810.2,0.7883]
[1746449089630,13.40274584,1810.5,1810.1,3.72438143]
[1746449089924,5.52405579,1810.3,1810.1,3.72438143]
[1746449090103,11.84356504,1810.4,1810.1,3.72438143]
[1746449090303,6.31965724,1810.4,1810.1,3.72438143]
[1746449090712,11.84355109,1810.4,1810.0,4.54838143]
[1746449091017,5.52375724,1810.4,1810.1,0.8204]
[1746449093628,5.52438821,1810.2,1810.0,3.72438143]
[1746449093852,11.04889582,1810.2,1810.0,3.72438143]
[1746449094148,5.52438821,1810.2,1810.0,3.72438143]
[1746449094624,5.52425158,1810.2,1810.0,3.72438143]
[1746449094929,8.64754188,1810.3,1810.0,3.72438143]
[1746449095130,5.52378693,1810.4,1810.1,0.8195]
[1746449095429,7.87932621,1810.5,1810.1,0.8195]
[1746449096328,5.52369757,1810.4,1810.1,0.8195]
[1746449096627,7.87932621,1810.5,1810.1,0.87473831]
[1746449096823,7.87932621,1810.5,1810.1,0.8195]
[1746449096990,7.87932621,1810.5,1810.1,1.31113196]
[1746449097430,5.52381747,1810.4,1810.1,1.31113196]
[1746449100333,7.87932621,1810.5,1810.1,1.31113196]
[1746449100531,5.52370896,1810.4,1810.1,1.31113196]
[1746449101238,5.52370896,1810.4,1810.1,0.8195]
[1746449102033,5.52409474,1810.3,1810.1,0.8195]
[1746449102245,7.87991706,1810.3,1810.0,1.14463814]
[1746449102400,5.52428667,1810.2,1810.0,0.7722]
[1746449102594,7.88048247,1810.1,1809.9,3.72438143]
[1746449102821,5.52429004,1810.2,1809.9,3.72438143]
[1746449103029,5.52429004,1810.2,1809.9,4.17403957]
[1746449103196,14.20252057,1810.3,1809.9,4.17403957]
[1746449103412,5.52436397,1810.2,1809.9,3.72438143]
[1746449104836,5.52436397,1810.2,1809.8,4.55182932]
[1746449105234,5.52390461,1810.4,1809.9,0.8068]
[1746449105442,7.87928194,1810.5,1810.1,0.8068]
[1746449106522,2.35582232,1810.5,1810.1,0.8068]
[1746449106819,11.04647652,1810.6,1810.1,0.8068]
[1746449107437,5.52348757,1810.5,1810.1,0.8068]
[1746449110522,5.52348757,1810.5,1810.1,0.86203842]
[1746449110852,5.52318198,1810.6,1810.1,0.86203842]
[1746449111151,12.47143008,1810.8,1810.1,0.86203842]
[1746449111336,5.52278318,1810.7,1810.1,0.86203842]
[1746449111859,5.52278318,1810.7,1810.1,0.8068]
[1746449112334,5.52278318,1810.7,1810.2,0.05523176]
[1746449112661,5.52278318,1810.7,1810.3,0.8116]
[1746449113332,7.87889424,1810.6,1810.3,0.8116]
[1746449114115,5.52334012,1810.5,1810.3,0.8116]
[1746449118039,7.87959827,1810.4,1810.1,4.50358143]
[1746449118372,5.52396718,1810.3,1810.1,4.50358143]
[1746449118944,5.52396718,1810.3,1810.1,3.72438143]
[1746449119780,5.52425146,1810.2,1810.1,3.72438143]
[1746449120089,7.88007378,1810.2,1810.1,3.72438143]
[1746449120455,5.52396718,1810.3,1810.1,3.72438143]
[1746449120642,5.52396718,1810.3,1809.9,3.77962748]
[1746449120845,5.52396718,1810.3,1809.9,4.64328418]
[1746449121182,8.65334766,1810.4,1809.9,4.64328418]
[1746449121584,7.87964766,1810.4,1810.0,0.7653]
[1746449121886,5.52406652,1810.3,1810.0,0.7653]
[1746449122683,11.04823859,1810.3,1810.0,0.7653]
[1746449122884,5.52406652,1810.3,1810.0,0.7653]
[1746449127088,11.04823617,1810.3,1810.0,0.7653]
[1746449127791,5.52406652,1810.3,1810.0,0.7653]
[1746449127958,11.04823622,1810.3,1810.0,0.7653]
[1746449128287,5.52430051,1810.2,1810.0,0.7653]
[1746449130409,7.88012283,1810.2,1810.0,0.7653]
[1746449130606,5.52455665,1810.1,1809.8,9.08008143]
[1746449130905,5.52455665,1810.1,1809.8,9.98808957]